Cogmind - Beta 13 @@@ ROGUE MODE // 2024.03.30 @ 20:59:25 Player: Nermattic Result: Destroyed by D-53 Grenadier with Mini Grenade Launcher Performance ------------- Evolutions (0) 0 Regions Visited (2) 400 Robots Destroyed (13) 65 Value Destroyed (270) 270 Prototype IDs (0) 0 Alien Tech Used (0) 0 Bonus (0) 0 TOTAL SCORE: 735 Bonus ------- None Cogmind --------- Core Integrity 0/250 Matter 227/300 Energy 67/125 System Corruption 0% Temperature Cool (10) Movement Core (150) Ox2 Location -10/Mines Parts ------- > --- POWER (1) -------- Light Ion Engine > --- PROPULSION (2) --- (None) > --- UTILITY (2) ------ Sensor Array Targeting Computer > --- WEAPON (2) ------- Light Cannon > --- INVENTORY (5) ---- Light Ion Engine Small Storage Unit Grenade Launcher Peak State ------------ > --- POWER ------------ Light Ion Engine > --- PROPULSION ------- Aluminum Leg Aluminum Leg > --- UTILITY ---------- Small Storage Unit Targeting Computer > --- WEAPON ----------- Assault Rifle Assault Rifle > --- INVENTORY -------- Ion Engine Light Armor Plating Grenade Launcher [Rating: 7] Favorites ----------- Power Light Ion Engine Engine Light Ion Engine Propulsion Aluminum Leg Leg Aluminum Leg Utility Targeting Computer Device Sensor Array Storage Large Storage Unit Processor Targeting Computer Protection Light Armor Plating Weapon Assault Rifle Energy Gun EM Pulse Gun Ballistic Gun Assault Rifle Ballistic Cannon Light Cannon Launcher Grenade Launcher Build | -11 -10 -10 ------- Run | Yrd Mat Min Slots Evolved . | . . . Power . | . . . Propulsion . | . . . Utility . | . . . Weapon . | . . . Parts Attached 20 | 6 11 3 Power 3 | 1 1 1 Engine 3 | 1 1 1 Core . | . . . Reactor . | . . . Propulsion 3 | 2 1 . Treads . | . . . Leg 3 | 2 1 . Wheel . | . . . Hover . | . . . Flight . | . . . Utility 5 | 1 4 . Device 1 | . 1 . Storage 2 | 1 1 . Processor 1 | . 1 . Hackware . | . . . Protection 1 | . 1 . Artifact . | . . . Weapon 9 | 2 5 2 Energy Gun 1 | . . 1 Energy Cannon . | . . . Ballistic Gun 6 | 2 4 . Ballistic Cannon 1 | . . 1 Launcher 1 | . 1 . Special Weapon . | . . . Impact Weapon . | . . . Slashing Weapon . | . . . Piercing Weapon . | . . . Special Melee Weapon . | . . . Unidentified Prototypes . | . . . Parts Lost 4 | . . 4 Power 1 | . . 1 Propulsion 1 | . . 1 Utility . | . . . Weapon 2 | . . 2 Highest Loss Streak 4 | . . 4 To Critical Strikes . | . . . Average Slot Usage (%) 87 | . 89 83 Engine 11 | . 11 13 Leg 19 | . 22 13 Device 6 | . 2 14 Storage 6 | . 9 . Processor 13 | . 13 14 Ballistic Gun 21 | . 25 13 Ballistic Cannon 2 | . . 7 Launcher 3 | . 1 6 Naked Turns . | . . . Heaviest Build 27 | 12 27 10 Greatest Support 20 | 20 20 10 Greatest Overweight (x) 3 | 3 2 . Average Overweight (x) . | . . . Largest Inventory Capacity 15 | 8 15 5 Average Capacity 9 | 7 11 5 Most Carried 6 | 5 6 5 Average Carried 3 | 1 3 4 Final Capacity 8 | 8 5 5 Final Carried 4 | 1 4 3 Class Distribution -------------------- 100% | Mutant Dominant Class ---------------- Mutant | -10/Materials Mutant | -10/Mines Resources | -11 -10 -10 ----------- Run | Yrd Mat Min Matter Collected 496 | 178 291 27 Remotely . | . . . Salvage Created 277 | . 209 68 Parts 24 | . 19 5 Haulers Intercepted . | . . . Recyclers Shooed . | . . . Parts Field Recycled . | . . . Retrieved Matter . | . . . Parts Self-Destructed . | . . . Prevented . | . . . Kills | -11 -10 -10 ------- Run | Yrd Mat Min Combat Hostiles Destroyed 7 | . 6 1 Guns 4 | . 4 . Cannons 1 | . . 1 AOE 2 | . 2 . Classes Destroyed 7 | . 5 2 Worker 1 | . 1 . Tunneler 1 | . . 1 Operator 1 | . 1 . Watcher 3 | . 3 . Swarmer 3 | . 3 . Grunt 3 | . 3 . Demolisher 1 | . . 1 Best Kill Streak 3 | . 3 2 Combat Bots Only 3 | . 3 1 Max Kills in Single Turn 2 | . 2 1 Gunslinging . | . . . Exploded 1 | . 1 . Melee . | . . . Uniques/NPCs Destroyed . | . . . Combat | -11 -10 -10 -------- Run | Yrd Mat Min Hostile Shots Fired 25 | . 10 15 Missed 1 | . . 1 Damage Taken 682 | . 123 559 Core 254 | . 28 226 Absorbed by Shields . | . . . Core Remaining (%) 100 | 100 . . Volleys Fired 29 | . 21 8 Largest 2 | . 2 2 Hottest 75 | . 50 75 Shots Fired 56 | . 42 14 Gun 41 | . 35 6 Cannon 8 | . . 8 Launcher 7 | . 7 . Special . | . . . Kinetic 47 | . 35 12 Thermal . | . . . Explosive 7 | . 7 . Electromagnetic 2 | . . 2 Robot Hit Streak 7 | . 7 4 Robot Miss Streak 6 | . 3 6 Penetration Max . | . . . Secondary Targets . | . . . Shots Hit Robots 22 | . 16 6 Core Hits 23 | . 18 5 Critical Kills . | . . . Critical Parts Destroyed . | . . . Critical Strikes . | . . . Melee Attacks . | . . . Impact . | . . . Slashing . | . . . Piercing . | . . . Sneak Attacks . | . . . Combat Hostiles . | . . . Follow-up Attacks . | . . . Damage Inflicted 591 | . 490 101 Guns 259 | . 222 37 Cannons 64 | . . 64 Explosions 268 | . 268 . Melee . | . . . Ramming . | . . . Kinetic 300 | . 222 78 Thermal . | . . . Explosive 268 | . 268 . Electromagnetic 23 | . . 23 Impact . | . . . Slashing . | . . . Piercing . | . . . Highest Corruption . | . . . Average Corruption . | . . . Corruption Purged . | . . . Corruption Blocked . | . . . Overload Shots . | . . . Overflow Damage . | . . . Projectiles . | . . . Explosions . | . . . Melee . | . . . Knockbacks 1 | . . 1 Impact . | . . . Kinetic 1 | . . 1 Secondary . | . . . Self-Inflicted Damage 10 | . 10 . Shots 1 | . 1 . Rammed . | . . . Targets Rammed . | . . . Kicked . | . . . Crushed . | . . . Highest Temperature 29 | . 29 23 Average Temperature 11 | . 12 9 Received Heat Transfer 45 | . 45 . Siege Activations . | . . . Robots Corrupted . | . . . Combat Hostiles . | . . . Parts Fried . | . . . Impact Corruptions . | . . . Robots Melted . | . . . Combat Hostiles . | . . . Parts Melted . | . . . Heat Transferred . | . . . Parts Sabotaged . | . . . Parts Stolen . | . . . Parts Stripped . | . . . Power Chain Reactions . | . . . Alert | -11 -10 -10 ------- Run | Yrd Mat Min Peak Influence 112 | . 112 43 Initial 43 | . . 43 Average 49 | . 57 40 Maximum Alert Level . | . . . Low Security (%) 100 | 100 100 100 Level 1 . | . . . Level 2 . | . . . Level 3 . | . . . Level 4 . | . . . Level 5 . | . . . High Security . | . . . Max Security . | . . . Squads Dispatched 2 | . 2 . Investigation 1 | . 1 . Extermination . | . . . Reinforcement 1 | . 1 . Assault . | . . . Garrison . | . . . Intercept . | . . . Searches Triggered . | . . . Construction Impeded . | . . . Haulers Reinforced . | . . . Active Scanning Responses . | . . . Cargo Convoy Interrupts . | . . . Stealth | -11 -10 -10 --------- Run | Yrd Mat Min Distress Signals 2 | . 2 . Communications Jammed . | . . . Distress Signals . | . . . Times Spotted 16 | . 10 6 Peak Tracking Total 7 | . 3 7 Tactical Retreats 1 | . . 1 Traps | -11 -10 -10 ------- Run | Yrd Mat Min Traps Triggered 2 | . 2 . Indirectly . | . . . Trap Hack Attempts . | . . . Triggered . | . . . Disarmed . | . . . Reprogrammed . | . . . Reused . | . . . Traps Extracted . | . . . Installed . | . . . Triggered . | . . . Machines | -11 -10 -10 ---------- Run | Yrd Mat Min Machines Disabled . | . . . Max in Single Turn . | . . . Machines Repaired . | . . . Machines Dismantled . | . . . Machines Sabotaged . | . . . Overloaded Fab Kills . | . . . Hacking | -11 -10 -10 --------- Run | Yrd Mat Min Machines Accessed 2 | . 2 . Terminals 1 | . 1 . Fabricators . | . . . Repair Stations . | . . . Recycling Units 1 | . 1 . Scanalyzers . | . . . Garrison Access . | . . . Total Hacks 7 | . 7 . Successful 4 | . 4 . Failed 3 | . 3 . Catastrophic . | . . . Database Lockouts . | . . . Manual . | . . . Terminals 3 | . 3 . Fabricators . | . . . Repair Stations . | . . . Recycling Units 4 | . 4 . Scanalyzers . | . . . Garrison Access . | . . . Terminal Hacks 1 | . 1 . Alert Level 1 | . 1 . Fabricator Hacks . | . . . Repair Station Hacks . | . . . Recycling Unit Hacks 3 | . 3 . Process 2 | . 2 . Report Inventory 1 | . 1 . Scanalyzer . | . . . Garrison Access Hacks . | . . . Unauthorized Hacks . | . . . Terminals . | . . . Fabricators . | . . . Repair Stations . | . . . Recycling Units . | . . . Scanalyzers . | . . . Garrison Access . | . . . Data Cores Recovered 1 | . 1 . Used . | . . . Hacking Detections 1 | . 1 . Full Trace Events 1 | . 1 . Feedback Events . | . . . Feedback Blocked . | . . . Robot Schematics Acquired . | . . . Robots Built . | . . . Authchips . | . . . Time . | . . . Total Robot Build Rating . | . . . Part Schematics Acquired . | . . . Parts Built . | . . . Authchips . | . . . Time . | . . . Total Part Build Rating . | . . . Parts Repaired . | . . . Time . | . . . Parts Recycled . | . . . Recycled Matter 206 | . 206 . Retrieved Matter . | . . . Retrieved Components . | . . . Parts Scanalyzed . | . . . Part Schematics Acquired . | . . . Parts Damaged . | . . . Bothacking | -11 -10 -10 ------------ Run | Yrd Mat Min Used RIF Installer . | . . . Robots Hacked . | . . . Non-combat . | . . . Combat . | . . . Robot Hacks Applied . | . . . Relay Couplers Released . | . . . Fabnet Peak Effective % . | . . . Robots Rewired . | . . . Allies Hacked . | . . . Hacks Repelled . | . . . Allies | -11 -10 -10 -------- Run | Yrd Mat Min Total Allies 2 | . . 2 Largest Group 2 | . . 2 Highest-Rated Group 43 | . . 43 Highest-Rated Ally 31 | . . 31 Total Orders . | . . . Ally Attacks 2 | . . 2 Total Damage . | . . . Kills . | . . . Allies Corrupted . | . . . Allies Melted . | . . . Intel | -11 -10 -10 ------- Run | Yrd Mat Min Robot Analysis Total . | . . . Derelict Logs Recovered 1 | . . 1 Drone Launches . | . . . Drone Recoveries . | . . . Exploration | -11 -10 -10 ------------- Run | Yrd Mat Min Turns Passed 954 | 57 601 296 Spaces Moved 570 | 38 309 223 Core 19 | 19 . . Treads . | . . . Legs 551 | 19 309 223 Wheels . | . . . Hover . | . . . Flight . | . . . Fastest Speed 50 | 50 120 120 Average Speed 144 | 116 165 120 Slowest Speed 260 | 200 260 120 Overloaded Moves . | . . . Propulsion Burnouts . | . . . Robots Hopped . | . . . Cave-ins Triggered . | . . . Exploration Rate (%) 34 | 3 62 38 Regions Visited 2 Branch Regions 1 Pre-discovered Areas 2 | . . 2 Known Exits Taken . | . . . Unknown Exits Taken 2 | 1 1 . Scrap Searched 1 | . . 1 Spaces Dug . | . . . Terrain Destroyed 38 | . 37 1 Melee . | . . . Projectile 1 | . . 1 AOE 37 | . 37 . Terrain Rammed . | . . . Walls Destroyed . | . . . Machines Disabled . | . . . Actions | -11 -10 -10 --------- Run | Yrd Mat Min Total 651 | 50 363 238 Wait 6 | . 3 3 Move 568 | 37 308 223 Hop . | . . . Pick Up 22 | 7 14 1 Fast Attach . | . . . Attach 19 | 6 11 2 Detach . | . . . Swap 1 | . . 1 Drop 6 | . 6 . Fire 29 | . 21 8 Melee . | . . . Ram . | . . . Kick . | . . . Crush . | . . . Escape Stasis . | . . . Rewire . | . . . Trap . | . . . Miscellaneous . | . . . Route ------- -11/Scrapyard -10/Materials (discovered 2 exits: [*Mat] / [*Min]) -10/Mines History --------- Turn | Location | Event 4 | -11/Scrapyard | Discovered new exit (range 16) 58 | -11/Scrapyard | Entered Materials 220 | -10/Materials | Discovered new exit (range 10) 318 | -10/Materials | Build established: Mutant 641 | -10/Materials | Discovered new exit (range 16) 659 | -10/Materials | Entered Mines 850 | -10/Mines | Learned location of Storage (-8) 908 | -10/Mines | Assembled infested the area 946 | -10/Mines | Core integrity fell below 50% 952 | -10/Mines | Core integrity fell below 20% 955 | -10/Mines | Destroyed by D-53 Grenadier with Mini Grenade Launcher Last Messages --------------- U-05 Engineer lays Concrete. Aluminum Leg destroyed. as-92204 destroyed. U-05 Engineer lays Concrete. Lgt. Assault Rifle destroyed. U-05 Engineer lays Concrete. D-53 Grenadier destroyed. K-01 Serf collects debris. U-05 Engineer lays Concrete. K-01 Serf collects debris. U-05 Engineer builds a Wall. as-69824 destroyed. D-53 Grenadier knocked back. K-01 Serf collects debris. U-05 Engineer lays Concrete. U-05 Engineer destroyed. T-07 Excavator destroyed. EM Pulse Gun destroyed. K-01 Serf collects debris. The unstable cave ceiling collapses. Map ----- +----------------------------------------------------+ | ?????????????????????????????????????????????????? | | ?????????????????????????????????????????????????? | | ?????????????????????????????????????????????????? | | ?????????????????????????????????????????????????? | | ?????????????????????????????????????????????????? | | ?????????????????????????????????????????????????? | | ?????????????????????????????????????????????????? | | ???????????????????? ????????????????????????????? | | ???????????????????? ????????????????????????????? | | ???????????????????? ????????????????????????????? | | ???????????????????? #???????????????????????????? | | ???????????????????? ???????????????????????????? | | ???????????????????? #???????????????????????????? | | ???????????????????? #???????????????????????????? | | ???????????????????# #???????????????????????????? | | ???????????????????# #???????????????????????????? | | ???????????????????# #???????????????????????????? | | ???????????????????# ######??????????????????????? | | ???????????????????# # ######?????????????????? | | ?????????????????### # ##????????????????? | | ????????????????## ##???????????????? | | ????????????????# a %#???????????????? | | ????????????????# " % % #######?????????? | | ????????????????## " =d #?????????? | | ?????????????????# " %%|ruk% #?????????? | | ?????????????????## @ !!!#### #?????????? | | ??????????????????# # ##???????????????? | | ??????????????????# ##????????????????? | | ??????????????????## ###?????????????????? | | ####???????????????# != ##???????????????????? | | #???????????????# ###????????????????????? | | " #???????????????## #??????????????????????? | | " #????????????????# ##?????????????????????? | | " #????????????????# ##????????????????????? | | #????????????????# ##???????????????????? | | " #????????????????## ## #???????????????????? | | " #?????????????????# ##?# #???????????????????? | | " #?????????????##### #?## ##### #?????????????? | | #????????????## ## ### #?????????????? | | #???????????## ##?????????????????? | | #??????????## ##??????????????????? | | #|##???????#### ##### ###???????????????????? | | # ####????## #??# #?????????????????????? | | #! [ #????# #??# #?????????????????????? | | #### ###### #### #??# #?????????????????????? | | #??# ## ##??## #??# #############?????????? | | #??# ## #######????# #??# #?????????? | | #??# #??????????# #??#### !!!! ### #?????????? | | ####### #??????????# #?????# !!!! #?# #?????????? | | #??# #??????????# ##????# !! #?# #?????????? | +----------------------------------------------------+ Best States ------------- Heat Dissipation 25 Energy Generation 10 Energy Capacity 250 Matter Stores 300 Matter Capacity 300 Sight Range 16 Robot Scan Range 14 Terrain Scan Density 10 Armor Coverage 150 Evasion (%) 55 Targeting Accuracy 5 Item Schematics ----------------- None Robot Schematics ------------------ None Fabricated ------------ Nothing Alien Tech Used ----------------- None Achievements -------------- None Challenges ------------ None Game ------ Seed ConcussiveRainbowFlamer Manual? 0 Play Time 00:12:53 Cumulative 2.4 hours Start 2024.03.30 @ 20:49:18 End 2024.03.30 @ 20:59:25 Sessions 1 Manual Loads 0 Difficulty Rogue Special Mode None Game No. 5 Rogue 5 Adventurer 0 Explorer 0 Win Type - Total 0 Types 0/0/0/0/0/0/0/0/0 Lore% 2 Gallery% 7 Achievement% 5 Wizard Run 0 Options --------- Layout 1 ASCII 0 Keyboard 0 Movement Mouse Keybinds 0 Fullscreen 2 Font 24/Smallcaps Map View 25x17 Zoom Use 69% Tactical HUD 0 Map Filters NONE Filters NONE Steam 1 RUN: 7da5827b-4766-4c1c-8ab2-99896e0350ca